Cogmind - Beta 16 @@@ ROGUE MODE // 2025.10.30 @ 21:41:15 Player: Naughtyusername Result: Core destroyed Performance ------------- Evolutions (0) 0 Regions Visited (1) 200 Robots Destroyed (19) 95 Value Destroyed (448) 448 Prototype IDs (0) 0 Alien Tech Used (0) 0 Bonus (0) 0 TOTAL SCORE: 743 Bonus ------- None Cogmind --------- Core Integrity 0/250 Matter 120/300 Energy 100/100 System Corruption 3% Temperature Cool (0) Movement Core (350) Ox6 Location -10/Materials Parts ------- > --- POWER (1) -------- Ion Engine > --- PROPULSION (2) --- Aluminum Leg > --- UTILITY (2) ------ Medium Storage Unit Targeting Computer > --- WEAPON (2) ------- Beam Cannon Beam Cannon > --- INVENTORY (10) --- Aluminum Leg Heat Sink Large Storage Unit Core Shielding Core Shielding Medium Laser Grenade Launcher Peak State ------------ > --- POWER ------------ Ion Engine > --- PROPULSION ------- Aluminum Leg Aluminum Leg > --- UTILITY ---------- Small Storage Unit Targeting Computer > --- WEAPON ----------- Medium Laser Assault Rifle > --- INVENTORY -------- Ion Engine Grenade Launcher [Rating: 7] Favorites ----------- Power Ion Engine Engine Ion Engine Propulsion Aluminum Leg Leg Aluminum Leg Utility Targeting Computer Storage Medium Storage Unit Processor Targeting Computer Weapon Medium Laser Energy Gun Medium Laser Energy Cannon Beam Cannon Ballistic Gun Assault Rifle Build | -11 -10 ------- Run | Yrd Mat Slots Evolved . | . . Power . | . . Propulsion . | . . Utility . | . . Weapon . | . . Parts Attached 13 | 7 6 Power 2 | 1 1 Engine 2 | 1 1 Core . | . . Reactor . | . . Propulsion 3 | 2 1 Treads . | . . Leg 3 | 2 1 Wheel . | . . Hover . | . . Flight . | . . Utility 3 | 1 2 Device . | . . Storage 2 | 1 1 Processor 1 | . 1 Hackware . | . . Protection . | . . Artifact . | . . Weapon 5 | 3 2 Energy Gun 2 | 2 . Energy Cannon 2 | . 2 Ballistic Gun 1 | 1 . Ballistic Cannon . | . . Launcher . | . . Special Weapon . | . . Impact Weapon . | . . Slashing Weapon . | . . Piercing Weapon . | . . Special Melee Weapon . | . . Unidentified Prototypes . | . . Parts Lost 5 | . 5 Power 1 | . 1 Propulsion 2 | . 2 Utility . | . . Weapon 2 | . 2 Highest Loss Streak 3 | . 3 To Critical Strikes . | . . Average Backups 5 | 1 6 Power . | . . Propulsion . | . . Utility 2 | . 2 Weapon 2 | . 2 Tool/Special . | . . Unused Backups 6 | . 6 Power . | . . Propulsion 1 | . 1 Utility 4 | . 4 Weapon 1 | . 1 Tool/Special . | . . Average Slot Usage (%) 95 | . 95 Engine 13 | . 13 Leg 25 | . 25 Storage 14 | . 14 Processor 12 | . 12 Energy Gun 13 | . 13 Energy Cannon 6 | . 6 Ballistic Gun 8 | . 8 Peak Build Rating 7 | 6 7 Average Rating 6 | 4 6 On Entrance 3 | . 6 Avg Prop Armor Cover (%) 10 | . 10 Naked Turns . | . . Heaviest Build 21 | 14 21 Greatest Support 20 | 20 20 Greatest Overweight (x) 6 | . 6 Average Overweight (x) . | . . Largest Inventory Capacity 10 | 8 10 Average Capacity 9 | 7 9 Most Carried 9 | 2 9 Average Carried 5 | 1 6 Final Capacity 10 | 8 10 Final Carried 7 | 2 7 Class Distribution -------------------- 100% | Mutant Dominant Class ---------------- Mutant | -10/Materials Resources | -11 -10 ----------- Run | Yrd Mat Matter Collected 424 | 212 212 Remotely . | . . Salvage Created 618 | 80 538 Parts 34 | 4 30 Haulers Intercepted 1 | . 1 Recyclers Shooed 1 | . 1 Parts Field Recycled . | . . Retrieved Matter . | . . Parts Self-Destructed . | . . Prevented . | . . Parts Restored . | . . Kills | -11 -10 ------- Run | Yrd Mat Combat Hostiles Destroyed 16 | . 16 Guns 12 | . 12 Cannons 3 | . 3 Classes Destroyed 5 | 2 3 Tunneler 1 | 1 . Hauler 1 | . 1 Recycler 1 | 1 . Swarmer 6 | . 6 Grunt 10 | . 10 Best Kill Streak 5 | 2 5 Combat Bots Only 5 | . 5 Max Kills in Single Turn 2 | 1 2 Gunslinging 1 | . 1 Exploded . | . . Melee . | . . Uniques/NPCs Destroyed . | . . Combat | -11 -10 -------- Run | Yrd Mat Hostile Shots Fired 85 | . 85 Missed 22 | . 22 Hits 63 | . 63 Projectile 63 | . 63 Critical Strikes 1 | . 1 Damage Taken 809 | . 809 Core 255 | . 255 Absorbed by Shields . | . . Core Remaining (%) 100 | 100 . Volleys Fired 75 | 2 73 Largest 2 | 2 2 Hottest 120 | 100 120 Shots Fired 141 | 4 137 Gun 115 | 4 111 Cannon 26 | . 26 Launcher . | . . Special . | . . Kinetic 38 | 1 37 Thermal 103 | 3 100 Explosive . | . . Electromagnetic . | . . Robot Hit Streak 12 | 3 12 Robot Miss Streak 6 | 1 6 Penetration Max . | . . Secondary Targets 2 | . 2 Max Gunslinging Chain 1 | . 1 Shots Hit Robots 79 | 3 76 Core Hits 29 | 3 26 Critical Kills 1 | . 1 Critical Parts Destroyed . | . . Critical Strikes 6 | . 6 Burn 5 | . 5 Destroy 1 | . 1 Melee Attacks . | . . Impact . | . . Slashing . | . . Piercing . | . . Sneak Attacks . | . . Combat Hostiles . | . . Follow-up Attacks . | . . Damage Inflicted 1050 | 36 1014 Guns 880 | 36 844 Cannons 160 | . 160 Explosions . | . . Melee . | . . Ramming 10 | . 10 Kinetic 319 | . 319 Thermal 721 | 36 685 Explosive . | . . Electromagnetic . | . . Impact . | . . Slashing . | . . Piercing . | . . Highest Corruption 3 | . 3 Average Corruption 2 | . 2 Corruption Purged . | . . Corruption Blocked . | . . Overload Shots . | . . Overflow Damage . | . . Projectiles . | . . Explosions . | . . Melee . | . . Knockbacks . | . . Impact . | . . Kinetic . | . . Secondary . | . . Self-Inflicted Damage 9 | . 9 Shots . | . . Rammed . | . . Targets Rammed 2 | . 2 Kicked 2 | . 2 Crushed . | . . Highest Temperature 711 | 39 711 Average Temperature 162 | 14 166 Received Heat Transfer 333 | . 333 Effects 25 | . 25 Shutdowns 1 | . 1 Energy Bleed 4 | . 4 Interference 1 | . 1 Matter Decay 6 | . 6 Short Circuit 4 | . 4 Damage (minor) 2 | . 2 Damage (major) 6 | . 6 Damage (core) 1 | . 1 Siege Activations . | . . Martial Activations . | . . Shielding Activations . | . . Robots Disrupted . | . . Combat Hostiles . | . . Robots Corrupted . | . . Combat Hostiles . | . . Parts Fried . | . . Impact Corruptions . | . . Robots Melted 1 | . 1 Combat Hostiles 1 | . 1 Parts Melted 6 | . 6 Heat Transferred 2368 | 111 2257 Parts Sabotaged . | . . Parts Stolen . | . . Parts Stripped . | . . Power Chain Reactions . | . . Alert | -11 -10 ------- Run | Yrd Mat Maximum Alert Level . | . . Low Security (%) 100 | 100 100 Level 1 . | . . Level 2 . | . . Level 3 . | . . Level 4 . | . . Level 5 . | . . High Security . | . . Max Security . | . . Peak Influence 175 | 10 175 Initial . | . . Average 51 | 1 55 Influence Increases 503 | 10 493 Destroy 0b10 Robot/C 320 | . 320 Destroy 0b10 Robot/NC 15 | 10 5 Destroy Leader 82 | . 82 Successful Hack 3 | . 3 Select Force Hacks 30 | . 30 Disable Machine 30 | . 30 Destroy Structure 23 | . 23 Influence Decreases 376 | 10 366 Time Decay 326 | 10 316 Lost Part 50 | . 50 Squads Dispatched 5 | . 5 Investigation 3 | . 3 Extermination . | . . Reinforcement 2 | . 2 Assault . | . . Garrison . | . . Intercept . | . . Searches Triggered . | . . Construction Impeded . | . . Haulers Reinforced . | . . Active Scanning Responses . | . . Cargo Convoy Interrupts . | . . Stealth | -11 -10 --------- Run | Yrd Mat Distress Signals 2 | . 2 Communications Jammed . | . . Distress Signals . | . . Times Spotted 26 | . 26 Peak Tracking Total 4 | . 4 Tactical Retreats . | . . Traps | -11 -10 ------- Run | Yrd Mat Traps Triggered 1 | . 1 Indirectly . | . . Trap Hack Attempts . | . . Triggered . | . . Disarmed . | . . Reprogrammed . | . . Reused . | . . Traps Extracted . | . . Installed . | . . Triggered . | . . Machines | -11 -10 ---------- Run | Yrd Mat Machines Disabled 2 | . 2 Max in Single Turn 2 | . 2 Machines Repaired . | . . Machines Dismantled . | . . Machines Sabotaged . | . . Overloaded Fab Kills . | . . Hacking | -11 -10 --------- Run | Yrd Mat Machines Accessed 7 | . 7 Terminals 6 | . 6 Fabricators . | . . Repair Stations . | . . Recycling Units 1 | . 1 Scanalyzers . | . . Garrison Access . | . . Total Hacks 18 | . 18 Successful 9 | . 9 Failed 9 | . 9 Catastrophic 1 | . 1 Database Lockouts . | . . Manual 15 | . 15 Terminals 17 | . 17 Fabricators . | . . Repair Stations . | . . Recycling Units 1 | . 1 Scanalyzers . | . . Garrison Access . | . . Terminal Hacks 1 | . 1 Terminal Index 1 | . 1 Fabricator Hacks . | . . Repair Station Hacks . | . . Recycling Unit Hacks . | . . Scanalyzer . | . . Garrison Access Hacks . | . . Unauthorized Hacks 8 | . 8 Terminals 7 | . 7 Botnet 3 | . 3 Skim 4 | . 4 Fabricators . | . . Repair Stations . | . . Recycling Units 1 | . 1 Tunnel 1 | . 1 Scanalyzers . | . . Garrison Access . | . . Data Cores Recovered . | . . Used . | . . Hacking Detections 6 | . 6 Full Trace Events 2 | . 2 Feedback Events . | . . Feedback Blocked . | . . Robot Schematics Acquired . | . . Robots Built . | . . Authchips . | . . Time . | . . Total Robot Build Rating . | . . Part Schematics Acquired . | . . Parts Built . | . . Authchips . | . . Time . | . . Total Part Build Rating . | . . Part Studies Acquired . | . . Parts Repaired . | . . Time . | . . Parts Recycled . | . . Recycled Matter . | . . Retrieved Matter . | . . Retrieved Components . | . . Parts Scanalyzed . | . . Part Schematics Acquired . | . . Parts Damaged . | . . Bothacking | -11 -10 ------------ Run | Yrd Mat Used RIF Installer . | . . Robots Hacked . | . . Non-combat . | . . Combat . | . . Robot Hacks Applied . | . . Relay Couplers Released . | . . Fabnet Peak Effective % . | . . Robots Rewired . | . . Allies Hacked . | . . Hacks Repelled . | . . Allies | -11 -10 -------- Run | Yrd Mat Total Allies . | . . Largest Group . | . . Highest-Rated Group . | . . Highest-Rated Ally . | . . Total Orders . | . . Ally Attacks . | . . Total Damage . | . . Kills . | . . Allies Corrupted . | . . Allies Melted . | . . Intel | -11 -10 ------- Run | Yrd Mat Active Infowar (turns) . | . . Robot Analysis Total . | . . Derelict Logs Recovered . | . . Drone Launches . | . . Drone Recoveries . | . . Exploration | -11 -10 ------------- Run | Yrd Mat Turns Passed 1043 | 72 971 Spaces Moved 579 | 49 530 Core 33 | 6 27 Treads . | . . Legs 546 | 43 503 Wheels . | . . Hover . | . . Flight . | . . Fastest Speed 50 | 50 120 Average Speed 131 | 111 133 Slowest Speed 350 | 120 350 Overloaded Moves . | . . Propulsion Burnouts . | . . Robots Hopped . | . . Potential Cave-ins . | . . Cave-ins Triggered . | . . Exploration Rate (%) 45 | 4 87 Regions Visited 1 Branch Regions . Pre-discovered Areas 1 | . 1 Known Exits Taken . | . . Unknown Exits Taken 1 | 1 . Scrap Searched . | . . Spaces Dug . | . . Terrain Destroyed 27 | . 27 Melee . | . . Projectile . | . . AOE 27 | . 27 Terrain Rammed 9 | . 9 Walls Destroyed . | . . Machines Disabled . | . . Actions | -11 -10 --------- Run | Yrd Mat Total 695 | 59 636 Wait 6 | . 6 Move 578 | 48 530 Hop . | . . Pick Up 11 | 2 9 Fast Attach 7 | 6 1 Attach 4 | . 4 Detach . | . . Swap 3 | 1 2 Drop 1 | . 1 Fire 75 | 2 73 Melee . | . . Ram 8 | . 8 Kick 2 | . 2 Crush . | . . Escape Stasis . | . . Rewire . | . . Trap . | . . Miscellaneous . | . . Route ------- -11/Scrapyard -10/Materials (discovered 4 exits: [*Mat x3] / [*Min]) History --------- Turn | Location | Event 6 | -11/Scrapyard | Discovered new exit (range 15) 73 | -11/Scrapyard | Entered Materials 278 | -10/Materials | Discovered new exit (range 16) 308 | -10/Materials | Build established: Mutant 565 | -10/Materials | Discovered new exit (range 6) 610 | -10/Materials | Discovered new exit (range 16) 815 | -10/Materials | Lost 3 parts (1p1n1w) 828 | -10/Materials | Discovered new exit (range 9) 873 | -10/Materials | Core integrity fell below 50% 1024 | -10/Materials | Core integrity fell below 20% 1044 | -10/Materials | Core destroyed Last Messages --------------- 01023_ Destabilizing: Core damaged (-12). 01024_ U-05 Engineer lays Concrete. 01027_ Slammed into Earth. 01027_ Destabilizing: Core damaged (-12). 01028_ U-05 Engineer lays Concrete. 01030_ Slammed into Earth. 01030_ Destabilizing: Core damaged (-2). 01031_ U-05 Engineer lays Concrete. 01034_ Slammed into Earth. 01034_ Destabilizing: System corrupted (+1). 01034_ U-05 Engineer lays Concrete. 01037_ Slammed into Earth. 01037_ Destabilizing: Core damaged (-12). 01038_ U-05 Engineer lays Concrete. 01041_ Slammed into Earth. 01041_ Destabilizing: Core damaged (-10). 01042_ U-05 Engineer lays Concrete. 01043_ U-05 Engineer builds a Wall. 01044_ Slammed into Earth. 01044_ Destabilizing: Core damaged (-10). Map ----- +----------------------------------------------------+ | ####+###### #???? | | =# % #?# #???? | | # #?# #???? | | # "%" #?# #???? | | # "Y" #?# ####???? | | # """ #?# " #??????? | | # #?# """ #??????? | | ########## "" #??????? | | #????? # """ #??????? | | #????? # "" #??????? | | ##?"??? # """ #??????? | | ??#" """ # """ ###????? | | ??#T """ # """ #????? | | ??#" """ + " #????? | | ??#" """ # #????? | | ??#" """ # %! #????? | | ??# ## ##### ####?? | | ??# ## #### ##### | | ??# ## % # ## | | ??######+### #" ## | | ??# #^^ # # | | ??# """ # #" u# | | ??# """ + + # | | ??# """ # # # | | ??# # < # # | | ??# """ # #] @# | | ??# """ ################ | | ??# """ !#????##### ### | | ??# #?????????####?? | | ??##########??????????????? | | ??????????????????????????? | | ??????????????????????????? | | ??????????????????????????? | | | | | | | | | | | | | | | | | | | | | | | | | | | | | | | | | | | +----------------------------------------------------+ Best States ------------- Heat Dissipation 25 Energy Generation 10 Energy Capacity 250 Matter Stores 300 Matter Capacity 300 Sight Range 16 Terrain Scan Density 10 Evasion (%) 55 Targeting Accuracy 5 Item Schematics ----------------- None Robot Schematics ------------------ None Fabricated ------------ Nothing Repaired ---------- Nothing Studied --------- None Alien Tech Used ----------------- None Achievements -------------- None Challenges ------------ None Game ------ Seed WardroneFocalSystem Manual? 0 Play Time 00:08:09 Cumulative 467.0 hours Start 2025.10.30 @ 21:30:53 End 2025.10.30 @ 21:41:15 Sessions 2 Manual Loads 0 Difficulty Rogue Special Mode None Game No. 253 Rogue 253 Adventurer 0 Explorer 0 Win Type - Total 21 Types 13/1/5/1/0/0/0/1/0/0 Lore% 93 Gallery% 85 Achievement% 77 Wizard Run 0 Options --------- Layout 2 ASCII 0 Keyboard 1 Movement Vi Keybinds 0 Fullscreen 1 Font 28/Terminus Map View 50x52 Zoom Use 0% Tactical HUD 1 Map Filters NONE Filters NONE Steam 1 RUN: 3e859c5e-ce02-4767-8947-9f17e42ccc83